{"text_format":"1","workbook":"xlsx","n_sheets":1,"sheets":["Tilskuddskalkulator"],"not_rendered":{"charts":0,"images":1,"macros":1,"external_links":0,"defined_names":0,"comments":0,"pivot_tables":0},"unopened":[],"bounds":{"document_bytes":16777216,"sheet_cells":100000,"rows_first":2000,"rows_last":500,"rows_between":2000,"halvings":0,"cell_chars":16384,"cell_head_chars":4096},"cells_cut":0,"cells_raw":0,"read":"whole","date_system":"1900"}

{"sheet":"Tilskuddskalkulator","index":0,"n_rows":113,"n_cols":11,"rows_kept":113,"cut":false,"hidden":false,"merged":[[60,2,60,6],[64,2,64,7],[46,2,46,7],[49,2,49,7],[50,2,50,7],[51,2,51,7],[52,2,52,7],[58,3,58,4],[59,3,59,4],[112,2,112,4],[110,2,110,4],[111,2,111,4],[108,2,108,4],[106,2,106,4],[107,2,107,4],[109,2,109,4],[23,2,23,6],[10,2,10,6],[11,2,11,6],[13,2,16,2],[13,3,16,3],[27,2,27,7],[28,2,28,7],[29,2,29,7],[30,2,30,7],[45,2,45,6],[9,2,9,6],[1,2,1,6],[2,2,2,6],[3,2,3,6],[5,2,5,6],[8,2,8,7],[105,2,105,4],[94,2,94,5],[101,2,101,5],[102,2,102,5],[88,2,88,6],[89,2,89,6],[90,2,90,6],[93,2,93,3],[91,2,91,3],[92,2,92,3],[76,2,76,7],[77,2,77,7],[78,2,78,7],[103,2,103,5],[104,2,104,5],[83,2,83,6],[84,2,84,7],[87,2,87,6],[69,3,69,5],[65,2,65,7],[66,2,66,7],[74,2,74,7],[75,2,75,7],[70,3,70,5],[68,3,68,5]]}
[]
[]
[null,null,"Tilskuddskalkulator 2025"]
[null,null,"Finn ut hvor mye tilskudd din kommune vil motta fra IMDi i 2025. Bruk denne kalkulatoren til å beregne de ulike tilskuddene dere mottar for flyktninger og innvandrere."]
[]
[null,null,"For å bruke kalkulatoren, trykk først på knappen \"Aktiver innhold\" helt øverst, så vil det komme opp en dialogboks, trykk deretter på \"Ja\". Dette er for å aktivere Makroer. Gå til de aktuelle tilskuddsordninger for å se hvilke satser som gjelder i år og sett inn antall personer som utløser de ulike satsene i kolonnen som heter \"Sett inn antall\". "]
[null,null,"Har du spørsmål om Tilskuddskalkulator? Send e-post til nama@imdi.no"]
[]
[null,null,"Integreringstilskudd, eldretilskudd og barnehagetilskudd"]
[null,null,"Ordningen gjelder i all hovedsak flyktninger og deres familiegjenforente som ble bosatt i perioden 2021-2025. Det er forskjellige satser som gjelder avhengig av hvilket år personene ble bosatt for første gang, og hvilken kategori de tilhører. "]
[null,null,"Les mer om ordningen på imdi.no."]
[]
[null,null,"Tilskuddsår"," Bosettingsår","Kategori","Sats","Sett inn antall","Tilskuddsbeløp"]
[null,null,"Integreringstilskudd år 1",2025,"Enslige voksne",250500,null,{"$f":"F14*G14","v":0}]
[null,null,null,null,"Voksne",202000,null,{"$f":"F15*G15","v":0}]
[null,null,null,null,"Enslige mindreårige",194300,null,0]
[null,null,null,null,"Barn",202000,null,0]
[null,null,"Integreringstilskudd år 2 ",2024,"Alle flyktninger",259200,null,{"$f":"F18*G18","v":0}]
[null,null,"Integreringstilskudd år 3 ",2023,"Alle flyktninger",184300,null,{"$f":"F19*G19","v":0}]
[null,null,"Integreringstilskudd år 4 ",2022,"Alle flyktninger",91400,null,{"$f":"F20*G20","v":0}]
[null,null,"Integreringstilskudd år 5 ",2021,"Alle flyktninger",74800,null,0]
[null,null,"Barnehagetilskudd ",2025,"Barn 0-5 år",28900,null,0]
[null,null,"Eldretilskudd ",2025,"Voksne over 60 år",187600,null,0]
[null,null,"Totalt",null,null,null,null,{"$f":"SUM(H14:H23)","v":0}]
[]
[]
[]
[null,null,"Særskilt tilskudd for bosetting av enslige mindreårige flyktninger "]
[null,null,"Enslige mindreårige (EM) er en fellesbetegnelse for alle barn og unge under 18 år som kommer til landet uten foreldre eller andre voksne med foreldreansvar i Norge. Det er forskjellige satser som gjelder avhengig av barnets alder og bosettingstidspunkt. Tilskuddet utbetales til og med året den enslige mindreårige fyller 20 år."]
[null,null,"Les mer om ordningen på imdi.no."]
[]
[null,null,"Bosettingstidspunkt","Lav sats (fra og med det året personen fyller 17 år)","Sett inn antall","Høy sats (til og med det året personen fyller 16 år)","Sett inn antall","Tilskuddsbeløp"]
[null,null,"fra 2025",667900,null,1059100,null,{"$f":"D33*E33+F33*G33","v":0}]
[null,null,"2025-01-01",{"$f":"D33","v":667900},null,{"$f":"F33","v":1059100},null,{"$f":"D34*E34+F34*G34","v":0}]
[null,null,"2025-02-01",{"$f":"$D$33*11/12","v":612241.66666666663},null,{"$f":"$F$33*11/12","v":970841.66666666663},null,0]
[null,null,"2025-03-01",{"$f":"$D$33*10/12","v":556583.33333333337},null,{"$f":"$F$33*10/12","v":882583.33333333337},null,0]
[null,null,"2025-04-01",{"$f":"$D$33*9/12","v":500925},null,{"$f":"$F$33*9/12","v":794325},null,0]
[null,null,"2025-05-01",{"$f":"$D$33*8/12","v":445266.66666666669},null,{"$f":"$F$33*8/12","v":706066.66666666663},null,0]
[null,null,"2025-06-01",{"$f":"$D$33*7/12","v":389608.33333333331},null,{"$f":"$F$33*7/12","v":617808.33333333337},null,0]
[null,null,"2025-07-01",{"$f":"$D$33*6/12","v":333950},null,{"$f":"$F$33*6/12","v":529550},null,0]
[null,null,"2025-08-01",{"$f":"$D$33*5/12","v":278291.66666666669},null,{"$f":"$F$33*5/12","v":441291.66666666669},null,0]
[null,null,"2025-09-01",{"$f":"$D$33*4/12","v":222633.33333333334},null,{"$f":"$F$33*4/12","v":353033.33333333331},null,0]
[null,null,"2025-10-01",{"$f":"$D$33*3/12","v":166975},null,{"$f":"$F$33*3/12","v":264775},null,0]
[null,null,"2025-11-01",{"$f":"$D$33*2/12","v":111316.66666666667},null,{"$f":"$F$33*2/12","v":176516.66666666666},null,0]
[null,null,"2025-12-01",{"$f":"$D$33*1/12","v":55658.333333333336},null,{"$f":"$F$33*1/12","v":88258.333333333328},null,0]
[null,null,"Totalt",null,null,null,null,{"$f":"SUM(H33:H45)","v":0}]
[]
[]
[]
[null,null,"Tilskudd til opplæring i norsk og samfunnskunnskap for voksne innvandrere"]
[null,null,"Kommunen mottar dette tilskuddet for voksne innvandrere som bor i kommunen, har rett og plikt til opplæring i norsk og samfunnskunnskap og hvor kommunen har registrert opplæringsvedtak i NIR. Tilskuddet utbetales per person i målgruppen (persontilskudd), som regel over tre år. Kommunene som har 150 personer eller færre i målgruppen, får også et grunntilskudd."]
[null,null,"Les mer om ordningen på imdi.no."]
[]
[null,null,"Tilskudd","Lav sats","Sett inn antall med lav sats","Høy sats","Sett inn antall med høy sats","Tilskuddsbeløp"]
[null,null,"Persontilskudd år 1 (2025)",17500,null,41200,null,{"$f":"D55*E55+F55*G55","v":0}]
[null,null,"Persontilskudd år 2 (2024)",31800,null,82000,null,{"$f":"D56*E56+F56*G56","v":0}]
[null,null,"Persontilskudd år 3 (2023)",19800,null,56500,null,{"$f":"D57*E57+F57*G57","v":0}]
[null,null,null,null,null,null,null,null,null,"-"]
[null,null,"Tilskudd","Velg antall personer i målgruppe",null,"Lav sats med 1 til 3 personer","Høy sats med 4 til 150 personer","Tilskuddsbeløp",null,"1-3 personer",242100]
[null,null,"Grunntilskudd for 2025","-",null,{"$f":"K59","v":242100},{"$f":"K60","v":721700},{"$f":"_xlfn.XLOOKUP(D60,J58:J60,K58:K60)","v":0},null,"4-150 personer",721700]
[null,null,"Totalt",null,null,null,null,{"$f":"H55+H56+H57+H60","v":0}]
[null,null,"*I kolonnen ‘tilskudd’ indikerer årstallene i parentes det året som personene som utløser persontilskuddet kom inn i målgruppen."]
[]
[]
[null,null,"Tilskudd til opplæring i norsk for voksne personer med kollektiv beskyttelse "]
[null,null,"Kommunen mottar dette tilskuddet for voksne personer med kollektiv beskyttelse som bor i kommunen, har rett til opplæring i norsk og hvor det er registrert opplæringsvedtak i NIR. Tilskuddet utbetales per person i målgruppen (persontilskudd), og er ettårig. Kommunen kan også motta tilskudd til utvidet norskopplæring for personer med kollektiv beskyttelse inntil 6 måneder, her må det også registreres opplæringsvedtak i NIR. Kommuner som har 150 personer eller færre i målgruppen, får også et grunntilskudd."]
[null,null,"Les mer om ordningen på imdi.no."]
[]
[null,null,"Tilskudd","Sats",null,null,"Sett inn antall","Tilskuddsbeløp"]
[null,null,"Personstilskudd § 37 d år 1 (2025)",50300,null,null,null,{"$f":"D70*G70","v":0}]
[null,null,"Utvidet norskopplæring (2025)",29700,null,null,null,{"$f":"D71*G71","v":0}]
[null,null,"Totalt",null,null,null,null,{"$f":"SUM(H70:H71)","v":0}]
[null,null,"*I kolonnen ‘tilskudd’ indikerer årstallene i parentes det året som personene som utløser persontilskuddet kom inn i målgruppen."]
[]
[]
[null,null,"Tilskudd for bosetting av personer med nedsatt funksjonsevne og/eller atferdsvansker"]
[null,null,"Tilskuddet skal bidra til å bosette flyktninger med alvorlige, kjente funksjonsnedsettelser og/atferdsvansker raskere. Tislkuddsordningen skal dekke ekstraordinære kommunale utgifter som følger av å bosette flyktninger med alvorlig fysiski og/eller psykisk funksjonsnedsettelse og personer med alvorlige atferds- og/eller rusproblemer.                                                                                                                                 Tilskudd 1: er et engangstilskudd og kan tildeles for enten første eller andre tilskuddsåret,  innslagspunkt kr 100 000,-.                                                                                                                                                                                                                                        Tilskudd 2: Tildeles årlig i integreringstilskuddsperioden på 5 år, innslagspunkt kr 200 000,-                                                                                                                                                                                                                                             *For personer som bosettes fra UDIs botilbud særskilt bo- og omsorgsløsning og særskilt pleie- og omsorgsløsning etter 16.juni, er satsem for tilskudd 2 på inntil 2 597 500 kroner.                                                                                                                                                                                                            "]
[null,null,"Les mer om ordningen på imdi.no."]
[]
[null,null,"Bosettingstidspunkt","Tilskudd 1 sats","Antall personer med tilskudd 1","Tilskudd 2 sats","Stipulert beløp for tilskudd 2","Tilskuddsbeløp T1 + T2"]
[null,null,2025,204100,null,1692000,null,{"$f":"D81*E81+G81","v":0}]
[null,null,2024,196400,null,1608000,null,{"$f":"D82*E82+G82","v":0}]
[null,null,2023,196400,null,1520000,null,{"$f":"D83*E83+G83","v":0}]
[null,null,"Totalt",null,null,null,null,{"$f":"SUM(H81:H83)","v":0}]
[]
[]
[]
[null,null,"Tilskuddsordning til opplæring i norsk og samfunnskunnskap for asylsøkarar i mottak 2025\n "]
[null,null,"Kommuner som tilbyr opplæring til asylsøkere norsk eller samfunnskunnskap i mottak. Tilskuddene utbetales per person som er i målgruppa for ordningene."]
[null,null,"Les mer om ordningen på imdi.no."]
[]
[null,null,"Kategori",null,"Sats","Sett inn antall","Tilskuddsbeløp"]
[null,null,"Opplæring i norsk for asysøkere",null,17400,null,{"$f":"E93*F93","v":0}]
[null,null,"Opplæring for samfunnskunnskap",null,2500,null,{"$f":"E94*F94","v":0}]
[null,null,null,null,null,null,{"$f":"G93+G94","v":0}]
[]
[]
[]
[]
[]
[]
[null,null,"Oppsummeringstabell"]
[null,null,"Denne tabellen oppsummerer sum av beregnet tilskudd til kommunen i 2024."]
[null,null,"Les mer om IMDis tilskuddsordninger på imdi.no."]
[]
[null,null,"Tilskuddsordning",null,null,"Summen av tilskuddsbeløp"]
[null,null,"Integreringstilskudd ",null,null,{"$f":"H24","v":0}]
[null,null,"Særskilt tilskudd for bosetting av enslige mindreårige flyktninger",null,null,{"$f":"H46","v":0}]
[null,null,"Tilskudd til opplæring i norsk og samfunnskunnskap for voksne innvandrere ",null,null,{"$f":"H61","v":0}]
[null,null,"Tilskudd til opplæring i norsk  for voksne personer med kollektiv beskyttelse og utvidet norskopplæring",null,null,{"$f":"H72","v":0}]
[null,null,"Tilskudd for bosetting av personer med nedsatt funksjonsevne og/eller atferdsvansker",null,null,{"$f":"H84","v":0}]
[null,null,"Tilskudd til opplæring i norsk og samfunnskunnskap i mottak  ",null,null,{"$f":"G95","v":0}]
[null,null,"Totalt",null,null,{"$f":"F107+F108+F109+F110+F111+F112","v":0}]